bitfinex-derivatives/quotes_ETHF0:USTF0_20241026
["timestamp","ask_amount","ask_price","bid_price","bid_amount"]
[1729948454378,2.14931195,2473.0,2472.9,3.2078]
[1729948454585,2.14931195,2473.0,2472.9,3.6126]
[1729948454979,0.83549,2473.0,2472.9,3.6126]
[1729948455186,0.40479,2473.0,2472.9,3.6126]
[1729948455776,1.71861195,2473.0,2472.9,3.6126]
[1729948457490,1.71861195,2473.0,2472.9,0.4048]
[1729948457790,1.71861195,2473.0,2472.9,3.6126]
[1729948458586,4.36717187,2473.0,2472.9,3.6126]
[1729948458786,1.71861195,2473.0,2472.9,3.6126]
[1729948458982,1.71861195,2473.0,2472.9,0.4048]
[1729948459183,1.71861195,2473.0,2472.9,0.98713028]
[1729948459484,1.71861195,2473.0,2472.9,0.98710908]
[1729948459887,1.71861195,2473.0,2472.9,4.19490908]
[1729948460386,3.58462898,2473.1,2473.0,0.40479]
[1729948460587,1.71860195,2473.1,2473.0,0.98709908]
[1729948461182,1.71860195,2473.1,2473.0,0.58230908]
[1729948461382,4.89845093,2473.1,2473.0,0.58230908]
[1729948462182,1.71860195,2473.1,2473.0,0.98709908]
[1729948463584,1.71860195,2473.1,2473.0,0.40479]
[1729948463794,1.71860195,2473.1,2473.0,0.98709054]
[1729948464993,1.71860195,2473.1,2473.0,0.58230054]
[1729948465293,4.89845093,2473.1,2473.0,0.32912639]
[1729948465684,4.89845093,2473.1,2473.0,0.12658707]
[1729948465996,1.71860195,2473.1,2473.0,0.12658707]
[1729948466288,4.89845093,2473.1,2473.0,0.12658707]
[1729948467092,4.89844093,2473.1,2473.0,0.12659451]
[1729948468485,6.21226288,2473.1,2473.0,0.12659451]
[1729948469088,4.89844093,2473.1,2473.0,0.12659451]
[1729948470496,6.20912848,2473.1,2473.0,0.12659451]
[1729948470695,6.20912848,2473.1,2473.0,0.1265979]
[1729948471595,4.89530653,2473.1,2473.0,0.1265979]
[1729948472595,4.89530653,2473.1,2473.0,0.32915518]
[1729948474193,4.89530653,2473.1,2472.8,4.0475]
[1729948474398,1.23179,2473.0,2472.9,0.32915291]
[1729948474604,2.54561195,2473.0,2472.9,0.32915291]
[1729948475596,2.54561195,2473.0,2472.9,0.32914919]
[1729948476297,0.4048,2472.9,2472.8,4.45232]
[1729948476497,0.4048,2472.9,2472.8,5.03466933]
[1729948477704,1.71862195,2472.9,2472.8,3.53695397]
[1729948477908,0.40485,2472.6,2472.5,0.4332]
[1729948478093,0.40485,2472.6,2472.5,0.68643061]
[1729948478094,1.71867195,2472.6,2472.5,0.68643061]
[1729948478294,1.71867195,2472.6,2472.5,0.4332]
[1729948478893,2.14167195,2472.6,2472.5,0.4332]
[1729948481209,2.14167195,2472.6,2472.3,3.6396]
[1729948481210,1.73682195,2472.6,2472.3,3.6396]
[1729948481397,3.0325239,2472.4,2472.3,3.2078]
[1729948481600,1.71870195,2472.4,2472.3,3.2078]
[1729948484707,2.16750195,2472.4,2472.3,3.2078]
[1729948485404,0.4049,2472.3,2472.2,3.2078]
[1729948485604,1.71872195,2472.3,2472.2,3.61272]
[1729948486408,1.71872195,2472.3,2472.2,3.2078]
[1729948487005,1.71872195,2472.3,2472.2,4.0688]
[1729948487608,4.36225589,2472.3,2472.2,4.0688]
[1729948488005,1.71872195,2472.3,2472.2,4.0688]
[1729948489909,1.71872195,2472.3,2472.2,4.19542655]
[1729948491817,1.71872195,2472.3,2472.2,4.60034655]
[1729948492910,1.71872195,2472.3,2472.2,4.19542655]
[1729948493308,1.71872195,2472.3,2472.2,4.60034849]
[1729948493613,1.71872195,2472.3,2472.2,4.19542849]
[1729948494012,1.71872195,2472.3,2472.2,4.60034849]
[1729948496911,1.71872195,2472.3,2472.2,4.60034758]
[1729948497113,1.71872195,2472.3,2472.2,4.47372]
[1729948497313,1.71872195,2472.3,2472.2,4.60034757]
[1729948499021,1.71872195,2472.3,2472.2,4.19542757]
[1729948500721,2.12982195,2472.3,2472.2,4.19542949]
[1729948501414,2.12982195,2472.3,2472.2,4.60034949]
[1729948502218,2.12982195,2472.3,2472.2,3.76902949]
[1729948502421,2.12982195,2472.3,2472.2,3.76902952]
[1729948502818,8.81815589,2472.3,2472.2,3.33442952]
[1729948503119,8.81815589,2472.3,2472.2,3.2078]
[1729948503120,2.12982195,2472.3,2472.2,3.2078]
[1729948503426,8.81844853,2472.3,2472.2,3.2078]
[1729948503721,6.17462195,2472.3,2472.2,3.2078]
[1729948504408,4.8608,2472.3,2472.2,3.2078]
[1729948504612,6.17462195,2472.3,2472.2,3.2078]
[1729948506721,4.01328862,2472.5,2472.2,3.2078]
[1729948507025,3.87575218,2472.6,2472.3,0.96452523]
[1729948507325,1.23187,2472.6,2472.5,3.61267]
[1729948507730,1.23187,2472.6,2472.5,3.73928231]
[1729948507924,2.54569195,2472.6,2472.5,3.73928231]
[1729948508418,2.14082195,2472.6,2472.5,3.73928231]
[1729948508623,2.54567195,2472.6,2472.5,3.73928231]
[1729948508827,0.40485,2472.7,2472.6,0.40485]
[1729948509026,0.40485,2472.7,2472.6,0.12661231]
[1729948509027,5.18955413,2472.7,2472.6,0.12661231]
[1729948509725,1.31382195,2472.7,2472.6,4.17061231]
[1729948509933,1.71866195,2472.7,2472.6,4.17061231]
[1729948510123,1.71866195,2472.7,2472.6,0.12661231]
[1729948510429,1.71866195,2472.7,2472.6,0.32918544]
[1729948510624,1.71866195,2472.7,2472.5,3.61266]
[1729948510820,0.40484,2472.7,2472.6,0.73402997]
[1729948511728,0.40484,2472.7,2472.6,0.32917997]
[1729948512028,1.71866195,2472.7,2472.6,4.37317997]
[1729948512229,1.71866195,2472.7,2472.6,4.77802997]
[1729948512546,4.36254413,2472.7,2472.6,4.77802997]
[1729948512734,3.04872218,2472.7,2472.6,0.73402997]
[1729948512921,1.71866195,2472.7,2472.6,4.77802997]
[1729948513122,1.71866195,2472.7,2472.6,0.73402997]
[1729948513428,4.36254413,2472.7,2472.6,4.77802997]
[1729948513628,4.36254413,2472.7,2472.6,0.73402997]
[1729948513828,4.36254413,2472.7,2472.6,0.40485]
[1729948514133,4.36254413,2472.7,2472.6,0.73402723]
[1729948516134,0.40484,2472.7,2472.6,0.73402723]
[1729948516323,1.71866195,2472.7,2472.6,0.73402723]
[1729948516825,4.36254413,2472.7,2472.6,0.73402723]
[1729948517919,4.36254413,2472.7,2472.6,0.40485]
[1729948518125,4.36254413,2472.7,2472.6,0.73402366]
[1729948518426,4.36254413,2472.7,2472.6,0.73402164]
[1729948520236,4.36254413,2472.7,2472.6,0.32917164]
[1729948520431,4.36254413,2472.7,2472.6,0.73402164]
[1729948520631,4.36254413,2472.7,2472.6,0.32917164]
[1729948520828,4.36254413,2472.7,2472.6,0.73402164]
[1729948521835,4.36254413,2472.7,2472.6,0.32917369]
[1729948522833,4.78414413,2472.7,2472.6,0.32917369]
[1729948523235,4.78414413,2472.7,2472.6,3.53697369]
[1729948525130,4.78414413,2472.7,2472.6,3.94182369]
[1729948525430,4.78414413,2472.7,2472.6,3.94183041]
[1729948525636,4.78414413,2472.7,2472.6,3.73925785]
[1729948525828,4.78414413,2472.7,2472.6,3.94182587]
[1729948527029,3.04872218,2472.7,2472.6,3.94182587]
[1729948527228,4.36254413,2472.7,2472.6,4.19503231]
[1729948527439,3.04872218,2472.7,2472.6,5.50885426]
[1729948527737,1.71862195,2472.9,2472.8,0.40482]
[1729948527932,1.71862195,2472.9,2472.8,0.98720231]
[1729948528132,1.71862195,2472.9,2472.8,5.03120231]
[1729948528329,1.71862195,2472.9,2472.8,5.46670231]
[1729948529136,1.71862195,2472.9,2472.8,5.46663517]
[1729948529436,1.71862195,2472.9,2472.8,5.08686441]
[1729948529643,1.71862195,2472.9,2472.8,5.46663432]
[1729948531036,1.31382195,2472.9,2472.8,5.46663432]
[1729948531729,1.71862195,2472.9,2472.8,5.46663432]
[1729948532744,1.31382195,2472.9,2472.8,4.88432]
[1729948532938,1.31382195,2472.9,2472.8,5.46661951]
[1729948533238,1.71862195,2472.9,2472.8,5.46661951]
[1729948533634,0.827,2473.1,2473.0,0.40479]
[1729948533940,2.54559195,2473.1,2473.0,0.73391581]
[1729948534140,1.31382195,2473.1,2473.0,0.53137685]
[1729948534348,3.95770413,2473.3,2473.0,5.68614215]
[1729948534532,1.71856195,2473.3,2473.2,0.40475]
[1729948534741,1.71856195,2473.3,2473.2,0.73386003]
[1729948534943,1.71856195,2473.3,2473.2,1.16776003]
[1729948536547,1.71856195,2473.3,2473.2,1.16773696]
[1729948537243,1.71856195,2473.3,2473.2,0.96522191]
[1729948537434,1.71856195,2473.3,2473.2,1.16773474]
[1729948538139,1.71856195,2473.3,2473.2,0.96522191]
[1729948538448,1.71856195,2473.3,2473.2,0.96521916]
[1729948540346,1.71856195,2473.3,2473.2,0.96521909]
[1729948544452,1.71856195,2473.3,2473.2,4.17301909]
[1729948547238,1.71856195,2473.3,2473.2,4.04645]
[1729948547442,1.71856195,2473.3,2473.2,4.17301928]
[1729948551248,1.71856195,2473.3,2473.2,1.16772783]
[1729948551449,1.71856195,2473.3,2473.2,4.37552783]
[1729948551749,1.71856195,2473.3,2473.2,4.04645]
[1729948551943,1.71856195,2473.3,2473.2,4.37552455]
[1729948552248,1.71856195,2473.3,2473.2,1.16772455]
[1729948552454,1.71856195,2473.3,2473.2,4.37552455]
[1729948553455,1.71856195,2473.3,2473.2,1.16772455]
[1729948553651,1.71856195,2473.3,2473.2,4.37552455]
[1729948554756,1.71856195,2473.3,2473.2,4.24895742]
[1729948555055,1.71856195,2473.3,2473.2,4.37552899]
[1729948555651,1.71856195,2473.3,2472.5,3.2078]
[1729948555652,4.044,2473.2,2472.5,3.2078]
[1729948555852,2.6276439,2472.6,2471.6,0.407]
[1729948556050,4.52162195,2471.8,2471.7,0.75975126]
[1729948556255,4.52162195,2471.8,2471.6,0.81201]
[1729948556454,4.92661195,2471.8,2471.6,0.407]
[1729948557149,0.405,2471.7,2471.6,0.407]
[1729948558553,0.405,2471.7,2471.6,1.72082195]
[1729948558554,1.71882195,2471.7,2471.6,1.72082195]
[1729948559454,1.71882195,2471.7,2471.6,0.407]
[1729948560357,0.40506,2471.4,2471.2,1.71889195]
[1729948560556,0.40506,2471.4,2471.3,0.4466]
[1729948560758,1.71888195,2471.4,2471.3,0.4466]
[1729948561753,0.40506,2471.4,2471.3,0.4466]
[1729948561952,0.40506,2471.4,2471.3,4.493]
[1729948561953,1.71888195,2471.4,2471.3,4.493]
[1729948562154,1.71888195,2471.4,2471.3,0.4466]
[1729948566158,0.40506,2471.4,2471.3,0.4466]
[1729948566357,1.71888195,2471.4,2471.3,0.4466]
[1729948567664,0.40505,2471.4,2471.3,1.76042195]
[1729948567968,1.31382195,2471.4,2471.3,0.4466]
[1729948568156,1.71887195,2471.4,2471.3,0.4466]
[1729948576063,4.92667195,2471.4,2471.3,0.4466]
[1729948577166,4.52162195,2471.4,2471.3,0.4466]
[1729948577360,4.92667195,2471.4,2471.3,0.85167]
[1729948578362,4.92667195,2471.4,2471.3,0.4466]
[1729948579863,4.92667195,2471.4,2471.3,0.85167]
[1729948580263,4.92667195,2471.4,2471.3,0.4466]
[1729948581063,3.2078,2471.4,2471.3,0.4466]
[1729948581261,3.2078,2471.4,2471.3,0.85167]
[1729948581460,4.52162195,2471.4,2471.3,0.85167]
[1729948582663,4.52162195,2471.4,2471.3,0.4466]
[1729948582863,4.92667195,2471.4,2471.3,0.4466]
[1729948584169,0.40509,2471.2,2471.1,0.40509]
[1729948584361,0.40508,2471.3,2471.1,0.4234]
[1729948584558,0.40508,2471.3,2471.2,0.40508]
[1729948585367,1.71890195,2471.3,2471.2,0.40508]
[1729948586464,1.31382195,2471.3,2471.2,0.40508]
[1729948586668,1.71889195,2471.3,2471.2,0.40508]
[1729948588582,1.31382195,2471.3,2471.2,0.40508]
[1729948589172,1.71889195,2471.3,2471.2,0.40508]
[1729948590569,4.92669195,2471.3,2471.2,0.40508]
[1729948590876,4.52162195,2471.3,2471.2,0.40508]
[1729948591174,4.92669195,2471.3,2471.2,0.40508]
[1729948592579,3.2078,2471.3,2471.2,0.40508]
[1729948592777,4.52162195,2471.3,2471.2,0.40508]
[1729948595274,1.31382195,2471.3,2471.2,0.40508]
[1729948595872,3.2078,2471.4,2471.3,0.40507]
[1729948596171,4.92667195,2471.4,2471.3,0.40507]
[1729948596367,0.40507,2471.3,2471.2,0.40507]
[1729948596572,1.71889195,2471.3,2471.2,0.40507]
[1729948601176,1.71889195,2471.3,2471.2,0.53174248]
[1729948601481,1.71889195,2471.3,2471.2,0.12667248]
[1729948601681,0.40508,2471.2,2471.1,0.8285]
[1729948601879,0.40508,2471.2,2471.1,0.55007686]
[1729948602077,1.71890195,2471.2,2471.1,0.55007686]
[1729948602277,4.35976127,2471.2,2471.1,0.12667686]
[1729948602595,1.31382195,2471.2,2471.0,0.409]
[1729948602774,6.38418862,2471.4,2471.0,0.409]
[1729948602775,7.57599926,2471.1,2471.0,0.409]
[1729948602976,7.57599926,2471.1,2471.0,0.53568417]
[1729948603177,4.92672195,2471.1,2471.0,0.12668417]
[1729948603379,4.52162195,2471.1,2470.9,1.26983]
[1729948603682,4.36810738,2471.0,2470.9,1.26983]
[1729948603874,4.36810738,2471.0,2470.9,1.39651621]
[1729948604075,4.36810738,2471.0,2470.9,0.99138621]
[1729948604686,4.36810738,2471.0,2470.9,1.39651621]
[1729948605183,4.36798263,2471.0,2470.9,1.39651621]
[1729948605683,4.36798263,2471.0,2470.9,0.99138621]
[1729948606188,4.36798263,2471.0,2470.9,0.8647]
[1729948606384,4.36798263,2471.0,2470.9,0.9913865]
[1729948607286,4.36710118,2471.0,2470.9,0.8647]
[1729948608078,1.71893195,2471.0,2470.9,1.26983]
[1729948608388,1.71893195,2471.0,2470.9,0.8647]
[1729948609679,1.71893195,2471.0,2470.9,1.26983]
[1729948611290,4.36615347,2471.0,2470.9,1.26983]
[1729948612082,4.36615347,2471.0,2470.9,0.8647]
[1729948612278,5.24515347,2471.0,2470.9,0.8647]
[1729948613088,2.59793195,2471.0,2470.9,1.26983]
[1729948613384,5.2449675,2471.0,2470.9,1.26983]
[1729948615189,5.2449675,2471.0,2470.9,0.8647]
[1729948615888,5.2449675,2471.0,2470.9,1.26983]
[1729948616082,5.2449675,2471.0,2470.9,0.8647]
[1729948616490,5.2449675,2471.0,2470.9,1.26983]
[1729948616994,5.2449675,2471.0,2470.9,0.8647]
[1729948617878,5.2449675,2471.0,2470.9,1.26983]
[1729948618180,5.2449675,2471.0,2470.9,0.8647]
[1729948618383,6.55878945,2471.0,2470.9,0.8647]
[1729948618582,3.9117539,2471.0,2470.9,0.4368]
[1729948618782,0.40515,2470.8,2470.7,0.4315]
[1729948618985,1.71897195,2470.8,2470.7,0.873]
[1729948620494,1.71897195,2470.8,2470.7,1.27816]
[1729948621387,8.41278657,2470.8,2470.7,0.873]
[1729948621587,5.76617195,2470.8,2470.7,0.4415]
[1729948623083,1.71897195,2470.8,2470.7,0.4415]
[1729948623287,5.76617195,2470.8,2470.7,0.4415]
[1729948626588,7.66015,2470.8,2470.7,0.4415]
[1729948626795,8.97397195,2470.8,2470.7,0.4415]
[1729948633493,7.66015,2470.8,2470.7,0.4415]
[1729948633797,8.97397195,2470.8,2470.7,0.4415]
[1729948636303,3.2078,2470.8,2470.7,0.84666]
[1729948636498,4.52162195,2470.8,2470.7,0.84666]
[1729948637395,4.92677195,2470.8,2470.7,0.84666]
[1729948640595,1.71897195,2470.8,2470.7,0.84666]
[1729948640906,4.92677195,2470.8,2470.7,0.84666]
[1729948643405,4.92677195,2470.8,2470.7,0.4415]
[1729948643810,4.92677195,2470.8,2470.7,0.84666]
[1729948645911,4.92677195,2470.8,2470.7,0.4415]
[1729948646111,4.92677195,2470.8,2470.7,0.84666]
[1729948647107,1.71897195,2470.8,2470.7,0.84666]
[1729948647813,4.92677195,2470.8,2470.7,0.84666]
[1729948648910,4.92677195,2470.8,2470.7,0.4415]
[1729948649219,4.92677195,2470.8,2470.7,0.84666]
[1729948649606,4.92677195,2470.8,2470.7,0.4415]
[1729948650413,4.92677195,2470.8,2470.7,0.84666]
[1729948651015,4.92677195,2470.8,2470.7,0.4415]
[1729948651212,4.92677195,2470.8,2470.7,0.84666]
[1729948652111,1.71897195,2470.8,2470.7,0.84666]
[1729948652510,4.92677195,2470.8,2470.7,0.4415]
[1729948652813,4.92677195,2470.8,2470.7,0.84666]
[1729948653011,4.92677195,2470.8,2470.7,0.4415]
[1729948656015,1.71897195,2470.8,2470.7,0.4415]
[1729948656315,4.92677195,2470.8,2470.7,0.4415]
[1729948657708,8.97397195,2470.8,2470.7,0.4415]
[1729948658319,5.76617195,2470.8,2470.7,0.4415]
[1729948658521,8.97397195,2470.8,2470.7,0.4415]
[1729948661211,7.66015,2470.8,2470.7,0.4415]
[1729948661411,8.97397195,2470.8,2470.7,0.4415]
[1729948661607,12.14749914,2470.8,2470.7,0.4415]
[1729948662218,8.10029914,2470.8,2470.7,0.4415]
[1729948663915,6.78647719,2470.8,2470.7,0.4415]
[1729948664115,8.10029914,2470.8,2470.7,0.4415]
[1729948664425,8.10029914,2470.8,2470.6,0.4371]
[1729948664426,8.56882195,2470.8,2470.6,0.4371]
[1729948664620,4.89571097,2470.7,2470.6,0.4371]
[1729948665220,1.71898195,2470.7,2470.6,0.4371]
[1729948666327,4.92678195,2470.7,2470.6,0.4371]
[1729948667228,8.62923034,2470.7,2470.6,0.4371]
[1729948669930,12.67643034,2470.7,2470.6,0.4371]
[1729948671439,0.40523,2470.3,2469.9,0.40529]
[1729948671649,0.40523,2470.3,2469.5,2.65430585]
[1729948671650,5.8354439,2470.0,2469.5,2.12344468]
[1729948671842,7.97160444,2469.6,2468.4,1.31382195]
[1729948672042,7.97160444,2469.6,2468.5,0.12679754]
[1729948672043,2.64635722,2468.7,2468.5,0.12679754]
[1729948672340,3.2078,2469.0,2468.3,1.31382195]
[1729948672638,3.2078,2469.0,2468.7,0.40548]
[1729948672639,4.52162195,2469.0,2468.7,0.40548]
[1729948672839,3.2078,2469.0,2468.7,1.71930195]
[1729948673040,1.31382195,2469.0,2468.7,1.71930195]
[1729948673239,3.2078,2469.3,2468.8,5.36422195]
[1729948673534,3.2078,2469.3,2468.5,3.2078]
[1729948673535,3.2078,2469.3,2468.7,1.71930195]
[1729948673740,1.31382195,2469.0,2468.7,1.71930195]
[1729948673936,3.2078,2469.3,2468.8,4.0504]
[1729948674137,4.52162195,2469.3,2469.0,1.31382195]
[1729948674444,4.52162195,2469.3,2468.8,0.40546]
[1729948674445,1.31382195,2469.1,2468.9,0.40545]
[1729948674644,3.2078,2469.3,2468.9,4.0504]
[1729948674943,3.2078,2469.3,2469.0,1.31382195]
[1729948674944,1.31382195,2469.2,2469.0,1.31382195]
[1729948675544,1.31382195,2469.2,2469.0,5.36422195]
[1729948676439,3.2078,2469.3,2469.1,1.31382195]
[1729948676638,3.2078,2469.7,2469.2,1.31382195]
[1729948676834,3.2078,2470.0,2469.6,1.31382195]
[1729948677042,1.31382195,2469.8,2469.7,1.31382195]
[1729948677233,1.31382195,2469.8,2469.7,1.76132195]
[1729948677436,3.2078,2470.0,2469.7,5.81012195]
[1729948677733,3.2078,2470.0,2469.9,1.31382195]
[1729948677935,3.2078,2470.0,2469.9,5.36262195]
[1729948678242,3.2078,2470.0,2469.8,0.8595]
[1729948678243,0.40529,2469.9,2469.8,0.8595]
[1729948678442,1.71911195,2469.9,2469.8,0.8595]
[1729948678739,1.71911195,2469.9,2469.8,4.9083]
[1729948679037,4.52162195,2470.0,2469.8,6.22212195]
[1729948679233,4.92690195,2470.0,2469.8,2.17332195]
[1729948679435,4.52162195,2470.0,2469.8,2.57862195]
[1729948679633,4.92690195,2470.0,2469.8,2.17332195]
[1729948679834,4.52162195,2470.0,2469.8,2.57863195]
[1729948680038,4.52162195,2470.0,2469.8,2.17332195]
[1729948680246,1.31382195,2469.9,2469.8,2.17332195]
[1729948680744,1.31382195,2469.9,2469.8,6.22212195]
[1729948680942,1.31382195,2469.9,2469.8,4.9083]
[1729948680943,1.71911195,2469.9,2469.8,4.9083]
[1729948681548,1.31382195,2469.9,2469.8,4.9083]
[1729948681739,1.31382195,2469.9,2469.8,5.31361]
[1729948682637,1.31382195,2469.9,2469.8,4.9083]
[1729948682945,1.71911195,2469.9,2469.8,4.9083]
[1729948683245,1.31382195,2469.9,2469.8,4.9083]
[1729948683642,1.71911195,2469.9,2469.8,0.8595]
[1729948683836,1.71911195,2469.9,2469.4,0.8816]
[1729948683837,0.40536,2469.5,2469.4,0.8816]
[1729948684041,1.71918195,2469.5,2469.4,0.8816]
[1729948684941,0.40532,2469.8,2469.4,6.24502195]
[1729948685243,3.61308,2470.0,2469.8,0.4053]
[1729948685436,4.92690195,2470.0,2469.9,1.76342195]
[1729948685632,4.92690195,2470.0,2469.9,0.4496]
[1729948686730,4.52162195,2470.0,2469.5,1.31382195]
[1729948686940,1.71916195,2469.6,2469.5,0.4437]
[1729948688345,0.40534,2469.6,2469.5,0.4437]
[1729948688548,1.71916195,2469.6,2469.5,0.4437]
[1729948688738,0.40536,2469.5,2469.4,0.4322]
[1729948688943,1.71918195,2469.5,2469.4,0.4322]
[1729948689139,0.40535,2469.6,2469.4,1.74602195]
[1729948689342,4.52162195,2469.7,2469.5,1.71917195]
[1729948689541,4.52162195,2469.7,2469.6,1.31382195]
[1729948689737,4.92695195,2469.7,2469.6,1.74092195]
[1729948689937,4.52162195,2469.7,2469.6,1.74092195]
[1729948690147,3.2078,2469.7,2469.6,2.14626195]
[1729948690942,3.2078,2469.7,2469.6,1.74092195]
[1729948691150,3.61313,2469.7,2469.6,1.74092195]
[1729948691346,4.92695195,2469.7,2469.6,0.4271]
[1729948691945,3.2078,2469.7,2469.6,2.14626195]
[1729948692345,3.61313,2469.7,2469.6,0.4271]
[1729948692754,3.2078,2469.7,2469.6,0.83244]
[1729948693154,0.40532,2469.8,2469.6,0.4271]
[1729948693449,0.40533,2469.7,2469.6,0.4271]
[1729948693852,0.40533,2469.7,2469.6,0.83244]
[1729948696651,0.40533,2469.8,2469.6,4.88124]
[1729948696846,0.40533,2469.8,2469.6,0.83244]
[1729948697048,0.40531,2469.8,2469.6,0.83244]
[1729948697545,3.2078,2469.9,2469.8,0.40531]
[1729948697745,3.2078,2469.9,2469.7,0.40532]
[1729948697946,3.2078,2469.9,2469.6,0.4271]
[1729948698154,3.2078,2469.9,2469.8,0.40531]
[1729948698348,3.61311,2469.9,2469.7,0.40532]
[1729948699055,3.61311,2469.9,2469.7,4.0488]
[1729948699247,3.61311,2469.9,2469.8,0.40531]
[1729948699852,3.6154,2470.2,2469.9,0.40529]
[1729948700157,3.6154,2470.2,2469.9,0.4258]
[1729948700158,0.40526,2470.1,2469.9,0.4258]
[1729948700358,6.28985801,2470.5,2470.0,0.4217]
[1729948700651,3.6456,2470.5,2470.1,2.84741272]
[1729948700846,0.40523,2470.4,2470.2,0.40523]
[1729948701049,0.40523,2470.4,2470.3,4.45323]
[1729948701245,0.40523,2470.4,2470.3,0.40523]
[1729948701445,0.40523,2470.4,2470.3,4.45323]
[1729948701848,0.40523,2470.4,2470.3,4.048]
[1729948702157,0.40523,2470.4,2470.3,4.45323]
[1729948702355,0.40526,2470.1,2470.0,0.4217]
[1729948703352,0.40526,2470.1,2469.9,0.4258]
[1729948703353,3.2078,2470.2,2469.9,0.4258]
[1729948703559,3.2078,2470.2,2469.7,0.4223]
[1729948703560,3.2078,2470.2,2469.8,0.4053]
[1729948703745,0.40529,2469.9,2469.7,1.24972]
[1729948703945,3.2078,2470.2,2469.9,0.40529]
[1729948703946,0.40528,2470.0,2469.9,0.40529]
[1729948705058,3.2078,2470.2,2469.7,0.8444]
[1729948705356,0.4053,2469.9,2469.8,0.4053]
[1729948705556,0.40529,2470.0,2469.7,0.8444]
[1729948705858,0.40529,2470.0,2469.8,0.40531]
[1729948706058,3.2078,2470.2,2469.7,0.8444]
[1729948706353,5.72361118,2470.5,2470.3,0.40523]
[1729948706561,5.72361118,2470.5,2470.1,0.40526]
[1729948706757,3.613,2470.5,2470.4,0.40521]
[1729948707157,3.2078,2470.5,2470.4,0.40521]
[1729948715456,3.2078,2470.6,2470.3,2.84741272]
[1729948715655,3.61298,2470.6,2470.4,0.4052]
[1729948715858,3.61299,2470.6,2470.4,0.4052]
[1729948716363,0.40521,2470.5,2470.3,0.40522]
[1729948717062,0.40521,2470.5,2470.4,0.40521]
[1729948717457,0.40521,2470.5,2470.3,0.40522]
[1729948717660,3.2078,2470.6,2470.3,0.40522]
[1729948717860,0.85443,2470.4,2470.2,0.4396]
[1729948718055,0.4492,2470.4,2470.3,0.40523]
[1729948718462,0.40523,2470.3,2470.1,0.81185]
[1729948718667,3.61303,2470.3,2470.2,0.40525]
[1729948718873,3.2078,2470.3,2470.1,0.4066]
[1729948719064,0.40525,2470.2,2470.1,0.81185]
[1729948719461,3.2078,2470.3,2470.1,0.81185]
[1729948719667,3.2078,2470.3,2470.1,0.4066]
[1729948719963,0.40526,2470.1,2470.0,0.4412]
[1729948720267,0.4296,2470.2,2469.7,0.8785]
[1729948720472,0.40527,2470.1,2470.0,0.40528]
[1729948721067,0.4296,2470.2,2470.0,0.40528]
[1729948721258,0.40526,2470.1,2470.0,0.40528]
[1729948721657,0.83486,2470.2,2470.0,0.40528]
[1729948722865,2.94547118,2470.2,2470.0,0.40528]
[1729948723463,0.40526,2470.1,2470.0,0.40528]
[1729948724367,2.54021118,2470.2,2469.7,1.2904]
[1729948724561,2.54021118,2470.2,2469.5,3.2078]
[1729948724562,0.4091,2470.0,2469.5,3.2078]
[1729948724758,0.4091,2470.0,2469.7,0.40533]
[1729948724759,0.40532,2469.8,2469.7,0.40533]
[1729948724965,0.4053,2469.9,2469.8,0.4053]
[1729948725165,6.13280118,2470.0,2469.8,0.4053]
[1729948725463,5.72751118,2470.0,2469.5,1.2907]
[1729948725663,5.72751118,2470.0,2469.7,0.40533]
[1729948725863,5.72751118,2470.0,2469.6,0.40534]
[1729948726064,0.40532,2469.8,2469.7,0.40533]
[1729948726868,0.40531,2469.9,2469.7,0.40533]
[1729948727570,0.40531,2469.8,2469.7,0.40533]
[1729948727973,5.72751118,2470.0,2469.5,1.2907]
[1729948728170,0.40532,2469.8,2469.7,0.40532]
[1729948728368,0.40532,2469.8,2469.5,1.2907]
[1729948728566,0.40532,2469.8,2469.6,0.40533]
[1729948729173,2.11061118,2469.9,2469.5,1.2907]
[1729948729366,5.72751118,2470.0,2469.5,1.2907]
[1729948729560,5.72751118,2470.0,2469.7,0.40532]
[1729948729764,0.40531,2469.8,2469.7,0.40532]
[1729948730073,0.40531,2469.8,2469.5,1.2907]
[1729948730269,0.40531,2469.8,2469.6,0.40533]
[1729948730473,0.40532,2469.8,2469.6,0.40533]
[1729948730671,0.40533,2469.7,2469.5,1.2907]
[1729948730861,0.40534,2469.7,2469.5,1.69604]
[1729948731269,0.40534,2469.7,2469.5,1.69605]
[1729948731871,0.40536,2469.6,2469.4,0.40537]
[1729948732074,0.40536,2469.5,2469.4,0.40537]
[1729948732873,0.40536,2469.5,2469.3,0.8453]
[1729948733070,0.40536,2469.5,2469.3,1.25068]
[1729948733271,2.52511118,2469.6,2469.3,1.25068]
[1729948733471,0.40536,2469.5,2469.3,1.25068]
[1729948733773,0.40536,2469.5,2469.3,0.8453]
[1729948733973,0.40536,2469.5,2469.3,1.25068]
[1729948734585,2.93046118,2469.6,2469.4,0.40538]
[1729948734776,0.40536,2469.5,2469.4,0.40537]
[1729948735074,0.40537,2469.5,2469.3,1.25069]
[1729948735673,2.52511118,2469.6,2469.4,0.40538]
[1729948735880,2.93047118,2469.6,2469.4,0.40538]
[1729948736177,0.40537,2469.5,2469.3,1.25068]
[1729948736372,0.40537,2469.5,2469.4,0.40538]
[1729948736568,2.93046118,2469.6,2469.5,0.40536]
[1729948736771,5.72375118,2469.7,2469.5,0.40536]
[1729948736973,3.61314,2469.7,2469.6,0.4328]
[1729948739372,5.72375118,2469.7,2469.6,0.4328]
[1729948740675,3.61314,2469.7,2469.6,0.4328]
[1729948741075,3.61314,2469.7,2469.4,0.4385]
[1729948741076,0.40536,2469.5,2469.4,0.4385]
[1729948741276,2.55451118,2469.6,2469.3,0.8453]
[1729948741577,0.40538,2469.4,2469.3,1.25069]
[1729948741978,0.40543,2469.1,2469.0,0.40543]
[1729948742185,0.4054,2469.3,2469.0,0.4385]
[1729948742480,0.40539,2469.3,2469.1,0.40542]
[1729948743278,0.40539,2469.3,2469.2,0.8542]
[1729948743676,5.31841118,2469.4,2469.0,0.84394]
[1729948743876,0.40543,2469.1,2469.0,0.84394]
[1729948744076,0.40541,2469.2,2469.1,0.40542]
[1729948744276,3.2078,2469.4,2469.1,0.40542]
[1729948744475,3.2078,2469.4,2469.3,0.40539]